Workbook

Sheet FINAL
D1: Ministério da Integração Nacional
D2: Companhia de Desenvolvimento dos Vales do São Francisco e do Parnaíba
D3: 1ª Superintendência Regional da CODEVASF - 1ª SR
A4: LOCAL: | B4: Pavimentação Asfáltica da Avenida Benjamin Constant - Bairros Santos Dumont, Santo Antônio e Centro
A5: REFERÊNCIAS DE PREÇO : SINAPI JUNHO/2018; SICRO JANEIRO / 2018 | G5: DATA BASE: JULHO/18
A6: PRAZO DE EXECUÇÃO: 180 dias
G7: BDI FORNECIMENTO: | I7: 0.18
G8: BDI SERVIÇO: | I8: ='[1]BDI-SErviços'!D33% -> 0.2546
A9: PLANILHA ORÇAMENTÁRIA
A10: ITEM | B10: SINAPI | C10: ESPECIF. | D10: DESCRIÇÃO | E10: UND | F10: QUANT. | G10: PREÇO UNIT. S/BDI (R$) | H10: PREÇO UNIT C/BDI (R$) | I10: PREÇO TOTAL (R$)
A11: 1.0 | D11: SERVIÇOS PRELIMINARES | I11: =SUM(I12:I36) -> 697599.97
A12: 1.1 | B12: CPU | C12: ES - COD - 001 | D12: Mobilização e desmobilização de equipamentos e pessoas | E12: GL | F12: 1 | G12: 83821.32 | H12: =G12*(1+$I$8) -> 105162.2281 | I12: =ROUND(H12*F12,2) -> 105162.23
A13: 1.2 | B13: CPU | C13: ES - COD - 001 | D13: Administração local | E13: Gl | F13: 1 | G13: 372349.62 | H13: 467149.8333 | I13: =ROUND(H13*F13,2) -> 467149.83
A14: 1.3 | B14: 74209/001 | C14: ES - COD - 001 | D14: Placa de obra em chapa de aço galvanizado | E14: M² | F14: 9 | G14: 379.67 | H14: =G14*(1+$I$8) -> 476.333982 | I14: 4287.01
A15: 1.4 | B15: 93207 | C15: ES - COD - 001 | D15: Execução de escritório para empreiteira em canteiro de obra em chapa de madeira compensada, não incluso mobiliário e equipamentos. | E15: M² | F15: 18.15 | G15: 633.6 | H15: 794.91456 | I15: 14427.7
A16: 1.5 | B16: 93207 | C16: ES - COD - 001 | D16: Execução de escritório para fiscalização em canteiro de obra em chapa de madeira compensada, não incluso mobiliário e equipamentos. | E16: M² | F16: 12 | G16: 633.6 | H16: =G16*(1+$I$8) -> 794.91456 | I16: 9538.97
A17: 1.6 | B17: 93208 | C17: ES - COD - 001 | D17: Execução de almoxarifado em canteiro de obra em chapa de madeira compensada, incluso prateleiras. | E17: M² | F17: 14.52 | G17: 469.88 | H17: 589.511448 | I17: 8559.71
A18: 1.7 | B18: 93210 | C18: ES - COD - 001 | D18: Execução de refeitório para empreiteira em canteiro de obra em chapa de madeira compensada, não incluso mobiliário e equipamentos. | E18: M² | F18: 25.41 | G18: 319.54 | H18: 400.894884 | I18: 10186.74
A19: 1.8 | B19: 93212 | C19: ES - COD - 001 | D19: Execução de sanitário e vestiário em canteiro de obra em chapa de madeira compensada, não incluso mobiliário e equipamentos. | E19: M² | F19: 14.52 | G19: 569.97 | H19: 715.084362 | I19: 10383.02
A20: 1.9 | B20: DNIT / CONSULTORIA | C20: ES - COD - 001 | D20: Locação de veículo sedan potência mínima 71 CV - (Direção hidráulica, com ar-condicionado para apoio à fiscalização, seminovo, em bom estado de conservação, com no máximo 01 (um) ano de uso, incluindo despesas com combustível, óleos, manutenção, licenciamento, seguros, impostos, etc.) | E20: MÊS | F20: 8 | G20: 3183.46 | H20: 3993.968916 | I20: 31951.75
A21: 1.10 | B21: 78472 | C21: ES - COD - 001 | D21: Serviços topográficos para pavimentação, inclusive nota de serviços, acompanhamento e greide. | E21: M² | F21: 28800 | G21: 0.43 | H21: 0.539478 | I21: 15536.97
A22: 1.11 | C22: ES - COD - 001 | D22: CONTROLE TECNOLÓGICO
A23: 1.11.1 | B23: 74022/007 | C23: DNER - ME - 080/94 | D23: Ensaio de granulometria por peneiramento e sedimentação - solos | E23: UD | F23: 6 | G23: 169.14 | H23: =G23*(1+$I$8) -> 212.203044 | I23: 1273.22
A24: 1.11.2 | B24: 74022/008 | C24: DNER - ME - 122/94 | D24: Ensaio de Limite de Liquedez - Solos | E24: UD | F24: 12 | G24: 89.02 | H24: 111.684492 | I24: 1340.21
A25: 1.11.3 | B25: 74022/042 | C25: DNER - ME - 054/97 | D25: Ensaio de equivalente de areia | E25: UD | F25: 12 | G25: 80.12 | H25: 100.518552 | I25: 1206.22
A26: 1.11.4 | B26: 74022/009 | C26: DNER - ME - 082/94 | D26: Ensaio de limite de Plásticidade - Solos | E26: UD | F26: 12 | G26: 80.12 | H26: 100.518552 | I26: 1206.22
A27: 1.11.5 | B27: 74022/010 | C27: DNER - ME - 129/94 | D27: Ensaio de compactação - Energia Normal | E27: UD | F27: 12 | G27: 169.14 | H27: 212.203044 | I27: 2546.44
A28: 1.11.6 | B28: 74022/024 | C28: DNER - ME - 052/94 | D28: Ensaio de Teor de Umidade | E28: UD | F28: 8 | G28: 71.22 | H28: 89.352612 | I28: 714.82
A29: 1.11.7 | B29: 74022/001 | C29: DNER - ME - 003 | D29: Ensaio de Penetração - Material Betuminoso | E29: UD | F29: 1 | G29: 151.33 | H29: 189.858618 | I29: 189.86
A30: 1.11.8 | B30: 74022/019 | C30: DNER - ME - 049/94 | D30: Ensaio de Índice de Suporte Califórnia | E30: UD | F30: 6 | G30: 204.75 | H30: 256.87935 | I30: 1541.28
A31: 1.11.9 | B31: 74022/025 | C31: DNER - ME - 148/94 | D31: Ensaio de Ponto de Fulgor - Material Betuminoso | E31: UD | F31: 1 | G31: 142.43 | H31: 178.692678 | I31: 178.69
A32: 1.11.10 | B32: 74022/002 | C32: DNER - ME - 004/94 | D32: Ensaio de Viscosidade SAYBOLT - FUROL - Material Betuminoso | E32: UD | F32: 12 | G32: 195.84 | H32: 245.700864 | I32: 2948.41
A33: 1.11.11 | B33: 74022/040 | C33: DNER - ME - 043/95 | D33: Ensaio MARSHALL - Mistura Betuminosa a Quente | E33: UD | F33: 9 | G33: 311.57 | H33: 390.895722 | I33: 3518.06
A34: 1.11.12 | B34: 74022/027 | C34: DNIT - 145/12ES | D34: Ensaio de Controle de taxa de aplicação de Ligante Betuminoso | E34: UD | F34: 12 | G34: 62.31 | H34: 78.174126 | I34: 938.09
A35: 1.11.13 | B35: 74022/030 | C35: NBR 5739 | D35: Ensaio de Resistência a compressão simples - Concreto | E35: UD | F35: 8 | G35: 160.24 | H35: 201.037104 | I35: 1608.3
A36: 1.11.14 | B36: 74022/053 | C36: DNIT 031/2006 –ES | D36: Ensaio de controle do grau de compactação da mistura asfáltica | E36: UD | F36: 12 | G36: 80.12 | H36: 100.518552 | I36: 1206.22
A37: 2.0 | D37: OBRAS VIÁRIAS | I37: =I38+I47+I65 -> 2908798.52
A38: 2.1 | D38: TERRAPLENAGEM | I38: =SUM(I39:I46) -> 161460.42
A39: 2.1.1 | B39: 5502985 | C39: DNIT - 104/2009 | D39: Limpeza mecanizada da camada vegetal | E39: m² | F39: 35508.157 | G39: 0.38 | H39: =G39*(1+$I$8) -> 0.476748 | I39: =ROUND(H39*F39,2) -> 16928.44
A40: 2.1.2 | B40: 4915667 | C40: DNIT - 085/2006 | D40: Remoção de Pavimento Asfáltico Existente - Estacas PE 22 a 57 | E40: m³ | F40: =35*20*8*0.03 -> 168 | G40: 10.49 | H40: 13.160754 | I40: 2211.01
A41: 2.1.3 | B41: 5914314 | C41: DNIT - 085/2006 | D41: Transporte de material para Bota-Fora | E41: tkm | F41: =F40*2.4*6.4 -> 2580.48 | G41: 0.93 | H41: 1.166778 | I41: 3010.85
A42: 2.1.4 | B42: 4816096 | C42: DNIT - 106/2009 | D42: Escavação e carga de material no corpo estradal com escavadeira hidráulica - Conforme Planilha Cubação | E42: m³ | F42: 4714.826 | G42: 0.89 | H42: 1.116594 | I42: 5264.55
A43: 2.1.5 | B43: 5915321 | C43: DNIT - 106/2009 | D43: Transporte com caminhão basculante de 14 m³ - rodovia pavimentada - Corpo Estradal até Bota-Fora | E43: Txkm | F43: 63367.328 | G43: 0.52 | H43: 0.652392 | I43: 41340.34
A44: 2.1.6 | B44: 4816096 | C44: DNIT - 107/2009 | D44: Escavação e carga de material de jazida com escavadeira hidráulica - Conforme Planilha Cubação | E44: m³ | F44: 6848.977 | G44: 0.89 | H44: 1.116594 | I44: 7647.53
A45: 2.1.7 | B45: 5915321 | C45: DNIT - 107/2009 | D45: Transporte com caminhão basculante de 14 m³ - rodovia pavimentada - Jazida até Corpo Estradal | E45: Txkm | F45: 92050.29 | G45: 0.52 | H45: 0.652392 | I45: 60052.87
A46: 2.1.8 | B46: 5502978 | C46: DNIT - 108/2009 | D46: Compactação de aterros a 100% do Proctor normal | E46: m³ | F46: =F44 -> 6848.977 | G46: 2.91 | H46: 3.650886 | I46: 25004.83
A47: 2.2 | D47: PAVIMENTAÇÃO | I47: =SUM(I48:I64) -> 1596125.8
A48: 2.2.1 | B48: 4011209 | C48: DNIT - 137/2010 | D48: Regularização do subleito | E48: m² | F48: =10645.43+9802 -> 20447.43 | G48: 0.72 | H48: =G48*(1+$I$8) -> 0.903312 | I48: =ROUND(H48*F48,2) -> 18470.41
A49: 2.2.2 | B49: 4011256 | C49: DNIT - 139/2010 | D49: Sub - Base estabilizada granulometricamente com mistura solo brita (50% - 50%) na pista com material de jazida e brita comercial - INCLUINDO FORNECIMENTO DA brita, ESCAVAÇÃO E CARGA DO MATERIAL DE JAZIDA, UMEDECIMENTO, HOMOGENIZAÇÃO E COMPACTAÇÃO DA MISTURA | E49: m³ | F49: =1870.06+2281.992 -> 4152.052 | G49: 58.01 | H49: =G49*(1+$I$8) -> 72.779346 | I49: 302183.63
A50: 2.2.3 | B50: 5915321 | C50: DNIT - 139/2010 | D50: Transporte com caminhão basculante de 14 m³ - rodovia pavimentada - Jazida até Corpo Estradal - material sub base | E50: Txkm | F50: 31887.74 | G50: 0.52 | H50: =G50*(1+$I$8) -> 0.652392 | I50: 20803.31
A51: 2.2.4 | B51: 5915321 | C51: DNIT - 139/2010 | D51: Transporte com caminhão basculante de 14 m³ - rodovia pavimentada - Britador até Corpo Estradal - material sub base | E51: Txkm | F51: 49824.6 | G51: 0.52 | H51: =G51*(1+$I$8) -> 0.652392 | I51: 32505.17
A52: 2.2.5 | B52: 4011256 | C52: DNIT - 141/2010 | D52: Base estabilizada granulometricamente com mistura solo brita (50% - 50%) na pista com material de jazida e brita comercial - INCLUINDO FORNECIMENTO DA BRITA, ESCAVAÇÃO E CARGA DO MATERIAL DE JAZIDA, UMEDECIMENTO, HOMOGENIZAÇÃO E COMPACTAÇÃO DA MISTURA | E52: m³ | F52: =1795.662+2211.068 -> 4006.73 | G52: 58.01 | H52: =G52*(1+$I$8) -> 72.779346 | I52: 291607.19
A53: 2.2.6 | B53: 5915321 | C53: DNIT - 141/2010 | D53: Transporte com caminhão basculante de 14 m³ - rodovia pavimentada - Jazida até Corpo Estradal - material base | E53: Txkm | F53: 30771.69 | G53: 0.52 | H53: 0.652392 | I53: 20075.2
A54: 2.2.7 | B54: 5915321 | C54: DNIT - 141/2010 | D54: Transporte com caminhão basculante de 14 m³ - rodovia pavimentada - Britador até Corpo Estradal - material base | E54: Txkm | F54: 48080.7 | G54: 0.52 | H54: 0.652392 | I54: 31367.46
A55: 2.2.8 | B55: 4011351 | C55: DNIT - 144/2014 | D55: Execução de Imprimação com CM-30, medido em planta | E55: m² | F55: =9518.12+9574.9+811 -> 19904.02 | G55: 0.23 | H55: 0.288558 | I55: 5743.46
A56: 2.2.9 | B56: Portaria 1977 - DNIT | C56: Portaria 1977 - DNIT | D56: Transporte de CM-30 - Gabriel Passos/Pirapora | E56: T | F56: =F55*0.0012 -> 23.884824 | G56: 140.814 | H56: 176.6652444 | I56: 4219.62
A57: 2.2.10 | B57: 4011353 | C57: DNIT - 145/2012 | D57: Execução de Pintura de Ligação com RR-1C | E57: m² | F57: =F55 -> 19904.02 | G57: 0.19 | H57: 0.238374 | I57: 4744.6
A58: 2.2.11 | B58: Portaria 1977 - DNIT | C58: Portaria 1977 - DNIT | D58: Transporte de RR-1C - Gabriel Passos/Pirapora | E58: T | F58: =F57*0.00045 -> 8.956809 | G58: 140.814 | H58: 176.6652444 | I58: 1582.36
A59: 2.2.12 | B59: CPU | C59: DNIT - 031/2006 | D59: Execução de Concreto asfáltico - faixa c - areia e brita comerciais (3,0 CM) | E59: T | F59: =F57*0.03*2.427 -> 1449.211696 | G59: 48.54 | H59: =G59*(1+$I$8) -> 60.898284 | I59: 88254.51
A60: 2.2.13 | B60: 5915321 | C60: Portaria 1977 - DNIT | D60: Transporte de CBUQ - Usina Montes Claros / Pista | E60: Txkm | F60: 253611.75 | G60: 0.52 | H60: 0.652392 | I60: 165454.28
A61: 2.2.14 | D61: Fornecimento do Material Betuminoso | I61: 0
A62: 2.2.14.1 | B62: 41901 | C62: DNER - EM - 363/97 | D62: Aquisição de Asfalto Diluido de Petroleo CM-30 | E62: T | F62: =F55*0.0012 -> 23.884824 | G62: =3.45*1000 -> 3450 | H62: =G62*(1+$I$7) -> 4071 | I62: 97235.12
A63: 2.2.14.2 | B63: 41905 | C63: DNIT 165/2013 - EM | D63: Aquisição de Emulsão Asfáltica RR-1C | E63: T | F63: =F57*0.00045 -> 8.956809 | G63: =1.51*1000 -> 1510 | H63: =G63*(1+$I$7) -> 1781.8 | I63: 15959.24
A64: 2.2.14.3 | B64: Cotação | C64: DNIT - 031/2006 | D64: Massa asfáltica Usinada em Montes Claros - incluso mão de obra, materiais e CAP 50/70. | E64: T | F64: =F59 -> 1449.211696 | G64: 290 | H64: =G64*(1+$I$7) -> 342.2 | I64: 495920.24
A65: 2.3 | D65: DRENAGEM | I65: =SUM(I66:I92) -> 1151212.3
A66: 2.3.1 | B66: 4805757 | C66: DNIT - 023/2006-ES | D66: Escavação mecânica de valas material de 1ª categoria | E66: m³ | F66: 2851.24 | G66: 5.8 | H66: =G66*(1+$I$8) -> 7.27668 | I66: =ROUND(H66*F66,2) -> 20747.56
A67: 2.3.2 | B67: 0804015 | C67: DNIT - 023/2006-ES | D67: Corpo de BSTC D = 0,40 m PA2 - Incluindo forma e concreto para berço | E67: m | F67: 372 | G67: 164.1 | H67: 205.87986 | I67: 76587.31
A68: 2.3.3 | B68: 0804023 | C68: DNIT - 023/2006-ES | D68: Corpo de BSTC D = 0,60 m PA2 - Incluindo forma e concreto para berço | E68: m | F68: 344 | G68: 259.14 | H68: 325.117044 | I68: 111840.26
A69: 2.3.4 | B69: 0804031 | C69: DNIT - 023/2006-ES | D69: Corpo de BSTC D = 0,80 m PA2 - Incluindo forma e concreto para berço | E69: m | F69: 345 | G69: 392.57 | H69: 492.518322 | I69: 169918.82
A70: 2.3.5 | B70: 0804039 | C70: DNIT - 023/2006-ES | D70: Corpo de BSTC D = 1,00 m PA2 - Incluindo forma e concreto para berço | E70: m | F70: 48 | G70: 517.57 | H70: 649.343322 | I70: 31168.48
A71: 2.3.6 | B71: 0804047 | C71: DNIT - 023/2006-ES | D71: Corpo de BSTC D = 1,20 m PA2 - Incluindo forma e concreto para berço | E71: m | F71: 106 | G71: 735.51 | H71: 922.770846 | I71: 97813.71
A72: 2.3.7 | B72: 0804055 | C72: DNIT - 023/2006-ES | D72: Corpo de BSTC D = 1,50 m PA2 - Incluindo forma e concreto para berço | E72: m | F72: 87 | G72: 1033.11 | H72: 1296.139806 | I72: 112764.16
A73: 2.3.8 | B73: 97629 | C73: DNIT - 027/2004-ES | D73: Demolição de concreto armado com martelete. | E73: m³ | F73: 0.9 | G73: 80.91 | H73: 101.509686 | I73: 91.36
A74: 2.3.9 | B74: 94964 | C74: DNER - ES - 346/97 | D74: Concreto FCK = 20MPA, traço 1:2,7:3 (cimento/ areia média/ brita 1 - Preparo mecânico com betoneira e lançamento. | E74: m³ | F74: 0.3 | G74: 252.01 | H74: =G74*(1+$I$8) -> 316.171746 | I74: 94.85
A75: 2.3.10 | B75: 3108013 | C75: DNER - ES - 346/97 | D75: Formas de compensado plastificado 12 mm - uso geral | E75: m² | F75: 0.51 | G75: 59.8 | H75: =G75*(1+$I$8) -> 75.02508 | I75: 38.26
A76: 2.3.11 | B76: 89996 | C76: DNER - ES - 346/97 | D76: Armação aço CA-50 | E76: KG | F76: 108 | G76: 5.99 | H76: =G76*(1+$I$8) -> 7.515054 | I76: 811.63
A77: 2.3.12 | B77: 0804061 | C77: DNIT - 026/2004-ES | D77: Boca BSTC D= 400 MM | E77: u | F77: 1 | G77: 272.35 | H77: 341.69031 | I77: 341.69
A78: 2.3.13 | B78: 0804121 | C78: DNIT - 026/2004-ES | D78: Boca BSTC D= 1000 MM | E78: u | F78: 1 | G78: 1339.5 | H78: 1680.5367 | I78: 1680.54
A79: 2.3.14 | B79: 0804141 | C79: DNIT - 026/2004-ES | D79: Boca BSTC D= 1200 MM | E79: u | F79: 4 | G79: 1838.95 | H79: 2307.14667 | I79: 9228.59
A80: 2.3.15 | B80: 0804161 | C80: DNIT - 026/2004-ES | D80: Boca BSTC D= 1500 MM | E80: u | F80: 3 | G80: 3131.77 | H80: 3929.118642 | I80: 11787.36
A81: 2.3.16 | B81: 2003569 | C81: DNIT - 016/2006-ES | D81: Dreno longitudinal profundo para corte em solo - DPS 07 - tubo de concreto | E81: m | F81: 1480 | G81: 102.53 | H81: 128.634138 | I81: 190378.52
A82: 2.3.17 | B82: 4915671 | C82: DNIT - 108/2009 | D82: Reaterro compactado de vala com soquete vibratório | E82: m³ | F82: 1878.28 | G82: 12.91 | H82: 16.196886 | I82: 30422.29
A83: 2.3.18 | B83: 2003939 | C83: DNIT - 020/2006-ES | D83: Meio fio de concreto - MFC 01 moldado no local com extrusora e concreto usinado | E83: m | F83: 2280 | G83: 40.85 | H83: 51.25041 | I83: 116850.93
A84: 2.3.19 | B84: 2003947 | C84: =C83 -> DNIT - 020/2006-ES | D84: Meio fio de concreto - MFC 05 moldado no local com extrusora e concreto usinado | E84: m | F84: 4700 | G84: 12.93 | H84: 16.221978 | I84: 76243.3
A85: 2.3.20 | D85: CAIXA DE PASSAGEM TIPO A - PADRÃO SUDECAP | I85: 0
A86: 2.3.20.1 | B86: 19.15.03 | C86: SUDECAP | D86: DN 600 MM | E86: U | F86: 1 | G86: 991.62 | H86: =G86*(1+$I$8) -> 1244.086452 | I86: 1244.09
A87: 2.3.20.2 | B87: 15.15.05 | C87: SUDECAP | D87: DN 800 MM | E87: U | F87: 14 | G87: 1360.13 | H87: =G87*(1+$I$8) -> 1706.419098 | I87: 23889.87
A88: 2.3.20.3 | B88: 15.15.07 | C88: SUDECAP | D88: DN 1000 MM | E88: U | F88: 1 | G88: 1777.6 | H88: =G88*(1+$I$8) -> 2230.17696 | I88: 2230.18
A89: 2.3.20.4 | B89: 15.15.09 | C89: SUDECAP | D89: DN 1200 MM | E89: U | F89: 2 | G89: 2256.28 | H89: =G89*(1+$I$8) -> 2830.728888 | I89: 5661.46
A90: 2.3.21 | D90: BOCA DE LOBO SIMPLES (TIPO B), GRELHA DE CONCRETO | I90: 0
A91: 2.3.21.1 | B91: 2003626 | C91: DNIT - 030/2004-ES | D91: BLSG 01 | E91: U | F91: 44 | G91: 634.99 | H91: =G91*(1+$I$8) -> 796.658454 | I91: 35052.97
A92: 2.3.21.2 | B92: 2003627 | C92: DNIT - 030/2004-ES | D92: BLSG 02 | E92: U | F92: 26 | G92: 745.69 | H92: =G92*(1+$I$8) -> 935.542674 | I92: 24324.11
A93: 3.0 | D93: SINALIZAÇÃO E URBANIZAÇÃO | I93: =I94+I104 -> 750672.46
A94: 3.1 | D94: URBANIZAÇÃO E OBRAS COMPLEMENTARES | I94: =SUM(I95:I103) -> 716724.13
A95: 3.1.1 | B95: 92403 | C95: DNER - 327/1997-ES | D95: Execução de piso intertravado, com bloco 16 faces de 22 X 11 cm, espessura 6 cm. | E95: m² | F95: 6540.83 | G95: 45.46 | H95: =G95*(1+$I$8) -> 57.034116 | I95: =ROUND(H95*F95,2) -> 373050.46
A96: 3.1.2 | D96: CANAL DE ESGOTAMENTO PLUVIAL TRAPEZOIDAL | I96: 0
A97: 3.1.2.1 | B97: 4816096 | C97: DNIT - 106/2009 | D97: Escavação e carga de material | E97: m³ | F97: 2407.5 | G97: 0.89 | H97: =G97*(1+$I$8) -> 1.116594 | I97: 2688.2
A98: 3.1.2.2 | B98: 5915321 | C98: DNIT - 106/2009 | D98: Transporte com caminhão basculante de 14 m³ - rodovia pavimentada - Corpo Estradal até Bota-Fora | E98: Txkm | F98: 20180.7 | G98: 0.52 | H98: 0.652392 | I98: 13165.73
A99: 3.1.2.3 | B99: 94097 | C99: DNIT - 023/2006-ES | D99: Apiloamento de fundo de vala | E99: m² | F99: 802.5 | G99: 4.32 | H99: 5.419872 | I99: 4349.45
A100: 3.1.2.4 | B100: 73611 | C100: ET-DE-H00/011 - DER/SP | D100: Enrocamento com pedra argamassada traço 1:4 com pedra de mão - Paredes e Fundo do Canal - Conforme Projeto | E100: m³ | F100: 468.125 | G100: 309.67 | H100: 388.511982 | I100: 181872.17
A101: 3.1.3 | B101: 4915723 | C101: DNIT - 020/2006-ES | D101: Caiação interna,três demãos com pigmento | E101: m² | F101: 2973 | G101: 2.3 | H101: 2.88558 | I101: 8578.83
A102: 3.1.4 | B102: 5502978 | C102: DNIT - 108/2009 | D102: Compactação de aterros a 100% do Proctor normal | E102: m² | F102: 905.96 | G102: 2.91 | H102: 3.650886 | I102: 3307.56
A103: 3.1.5 | B103: 94991 | C103: SUDECAP | D103: Execução de passeio (calçada) em concreto, acabamento convencional, não armado, E = 6 cm, FCK = 10 MPA, junta seca | E103: m³ | F103: 271.79 | G103: 380.4 | H103: 477.24984 | I103: 129711.73
A104: 3.2 | D104: SINALIZAÇÃO VIÁRIA | I104: =SUM(I105:I108) -> 33948.33
A105: 3.2.1 | B105: 5213401 | C105: DNIT - 100/2018-ES | D105: Pintura de faixa - tinta base acrílica - espessura de 0,6 mm - Conforme Projeto | E105: m² | F105: =(11985*0.1+552+87.5)/2 -> 919 | G105: 16.78 | H105: =G105*(1+$I$8) -> 21.052188 | I105: =ROUND(H105*F105,2) -> 19346.96
A106: 3.2.2 | B106: 5213572 | C106: DNIT - 101/2018-ES | D106: Fornecimento e implantação de placa em aço - PELÍCULA RETROREFLEXITIVA | E106: m² | F106: =1.8*0.7+2.2*1.4 -> 4.34 | G106: 373.04 | H106: =G106*(1+$I$8) -> 468.015984 | I106: =ROUND(H106*F106,2) -> 2031.19
A107: 3.2.3 | B107: 5213456 | C107: DNIT - 101/2018-ES | D107: Fornecimento e implantação de placa de regulamentação em fibra, R1 lado 0,248 m - película retrorrefletiva tipo I e SI | E107: UND | F107: 14 | G107: 220.12 | H107: =G107*(1+$I$8) -> 276.162552 | I107: =ROUND(H107*F107,2) -> 3866.28
A108: 3.2.4 | B108: 5213440 | C108: DNIT - 101/2018-ES | D108: Fornecimento e implantação de placa de regulamentação em aço D = 0,60 m - película retrorrefletiva tipo I e SI | E108: UND | F108: 33 | G108: 210.23 | H108: =G108*(1+$I$8) -> 263.754558 | I108: =ROUND(H108*F108,2) -> 8703.9
A109: TOTAL GERAL | I109: =I93+I37+I11 -> 4357070.95
